fUSD/lending_fUSD_20260605
["ID","MTS","AMOUNT","RATE_DAILY","PERIOD"]
[424144796,1780609858000,-500.0,0.00037808,11]
[424144795,1780609858000,-500.0,0.00037808,11]
[424144797,1780609858000,-500.0,0.00037808,11]
[424144798,1780609858000,-500.0,0.00037808,11]
[424144801,1780609858000,-582.54308701,0.00037808,11]
[424144800,1780609858000,-500.0,0.00037808,2]
[424144803,1780609858000,-500.0,0.00037808,11]
[424144802,1780609858000,-500.0,0.00037808,11]
[424144804,1780609858000,-620.29314652,0.00037808,11]
[424144799,1780609858000,-500.0,0.00037808,11]
[424144815,1780609858000,-500.0,0.00037808,11]
[424144809,1780609858000,-500.0,0.00037808,11]
[424144812,1780609858000,-500.0,0.00037808,11]
[424144807,1780609858000,-500.0,0.00037808,11]
[424144810,1780609858000,-500.0,0.00037808,11]
[424144818,1780609858000,-500.0,0.00037808,11]
[424144813,1780609858000,-500.0,0.00037808,11]
[424144817,1780609858000,-500.0,0.00037808,11]
[424144816,1780609858000,-1601.97,0.00037808,11]
[424144808,1780609858000,-500.0,0.00037808,11]
[424144811,1780609858000,-500.0,0.00037808,11]
[424144805,1780609858000,-500.0,0.00037808,11]
[424144894,1780609859000,-813.06,0.00037808,11]
[424144886,1780609859000,-1168.37,0.00037808,2]
[424144897,1780609859000,-500.0,0.00037808,11]
[424144895,1780609859000,-500.0,0.00037808,11]
[424144892,1780609859000,-678.09,0.00037808,11]
[424144900,1780609859000,-500.0,0.00037808,11]
[424144901,1780609859000,-500.0,0.00037808,11]
[424144889,1780609859000,-650.34,0.00037808,11]
[424144893,1780609859000,-4090.61,0.00037808,11]
[424144890,1780609859000,-3784.18,0.00037808,11]
[424144898,1780609859000,-4005.24,0.00037808,11]
[424144891,1780609859000,-704.67,0.00037808,11]
[424144899,1780609859000,-500.0,0.00037808,11]
[424144909,1780609859000,-3642.31,0.00037808,11]
[424144903,1780609859000,-500.0,0.00037808,11]
[424144908,1780609859000,-500.0,0.00037808,11]
[424144902,1780609859000,-500.0,0.00037808,11]
[424144905,1780609859000,-300.0,0.00037808,11]
[424144904,1780609859000,-500.0,0.00037808,11]
[424144913,1780609859000,-537.21,0.00037808,11]
[424144911,1780609859000,-500.0,0.00037808,11]
[424144912,1780609859000,-545.45,0.00037808,11]
[424144907,1780609859000,-2656.95,0.00037808,11]
[424144906,1780609859000,-375.36366188,0.00037808,11]
[424144914,1780609859000,-587.58,0.00037808,11]
[424144915,1780609859000,-3910.95,0.00037808,11]
[424144884,1780609859000,-500.0,0.00037808,11]
[424144896,1780609859000,-500.0,0.00037808,11]
[424144881,1780609859000,-500.0,0.00037808,11]
[424144858,1780609859000,-500.0,0.00037808,11]
[424144885,1780609859000,-500.0,0.00037808,11]
[424144925,1780609859000,-2771.82,0.00037808,11]
[424144864,1780609859000,-2658.89,0.00037808,11]
[424144857,1780609859000,-500.0,0.00037808,11]
[424144856,1780609859000,-500.0,0.00037808,11]
[424144859,1780609859000,-500.0,0.00037808,11]
[424144862,1780609859000,-919.67,0.00037808,11]
[424144863,1780609859000,-500.0,0.00037808,11]
[424144860,1780609859000,-601.68,0.00037808,11]
[424144861,1780609859000,-500.0,0.00037808,11]
[424144866,1780609859000,-160.84627702,0.00037808,11]
[424144867,1780609859000,-731.99,0.00037808,11]
[424144868,1780609859000,-500.0,0.00037808,11]
[424144875,1780609859000,-500.0,0.00037808,11]
[424144883,1780609859000,-500.0,0.00037808,11]
[424144871,1780609859000,-590.11,0.00037808,11]
[424144874,1780609859000,-500.0,0.00037808,11]
[424144869,1780609859000,-500.0,0.00037808,11]
[424144865,1780609859000,-500.0,0.00037808,11]
[424144872,1780609859000,-500.0,0.00037808,11]
[424144873,1780609859000,-500.0,0.00037808,11]
[424144877,1780609859000,-500.0,0.00037808,11]
[424144878,1780609859000,-500.0,0.00037808,11]
[424144876,1780609859000,-500.0,0.00037808,11]
[424144887,1780609859000,-2862.13,0.00037808,11]
[424144888,1780609859000,-500.0,0.00037808,11]
[424144880,1780609859000,-500.0,0.00037808,11]
[424144882,1780609859000,-500.0,0.00037808,11]
[424144879,1780609859000,-655.5,0.00037808,11]
[424144870,1780609859000,-500.0,0.00037808,11]
[424144916,1780609859000,-4318.74,0.00037808,11]
[424144910,1780609859000,-3427.89,0.00037808,11]
[424144917,1780609859000,-500.0,0.00037808,11]
[424144952,1780609859000,-3678.48,0.00037808,11]
[424144961,1780609859000,-500.0,0.00037808,11]
[424144951,1780609859000,-500.0,0.00037808,11]
[424144962,1780609859000,-3896.22,0.00037808,11]
[424144954,1780609859000,-660.86,0.00037808,11]
[424144955,1780609859000,-500.0,0.00037808,11]
[424144956,1780609859000,-500.0,0.00037808,11]
[424144953,1780609859000,-192.43366057,0.00037808,11]
[424144963,1780609859000,-3429.27,0.00037808,11]
[424144960,1780609859000,-2464.65,0.00037808,11]
[424144957,1780609859000,-500.0,0.00037808,11]
[424144959,1780609859000,-573.72,0.00037808,11]
[424144958,1780609859000,-500.0,0.00037808,11]
[424144944,1780609859000,-744.01,0.00037808,11]
[424144965,1780609859000,-500.0,0.00037808,11]
[424144975,1780609859000,-500.0,0.00037808,11]
[424144976,1780609859000,-500.0,0.00037808,11]
[424144964,1780609859000,-526.23,0.00037808,11]
[424144968,1780609859000,-500.0,0.00037808,11]
[424144973,1780609859000,-500.0,0.00037808,11]
[424144969,1780609859000,-500.0,0.00037808,11]
[424144972,1780609859000,-500.0,0.00037808,11]
[424144970,1780609859000,-3108.82,0.00037808,11]
[424144966,1780609859000,-813.02,0.00037808,11]
[424144967,1780609859000,-500.0,0.00037808,11]
[424144971,1780609859000,-500.0,0.00037808,11]
[424144977,1780609859000,-500.0,0.00037808,11]
[424144918,1780609859000,-500.0,0.00037808,11]
[424144974,1780609859000,-500.0,0.00037808,11]
[424144949,1780609859000,-500.0,0.00037808,11]
[424144979,1780609859000,-500.0,0.00037808,11]
[424144943,1780609859000,-506.64,0.00037808,11]
[424144919,1780609859000,-500.0,0.00037808,11]
[424144920,1780609859000,-500.0,0.00037808,11]
[424144922,1780609859000,-500.0,0.00037808,11]
[424144923,1780609859000,-500.0,0.00037808,11]
[424144978,1780609859000,-500.0,0.00037808,11]
[424144921,1780609859000,-500.0,0.00037808,11]
[424144924,1780609859000,-500.0,0.00037808,11]
[424144926,1780609859000,-559.05,0.00037808,11]
[424144942,1780609859000,-283.95437756,0.00037808,11]
[424144927,1780609859000,-170.06,0.00037808,11]
[424144930,1780609859000,-500.0,0.00037808,11]
[424144929,1780609859000,-642.11,0.00037808,11]
[424144928,1780609859000,-500.0,0.00037808,11]
[424144932,1780609859000,-500.0,0.00037808,11]
[424144931,1780609859000,-500.0,0.00037808,11]
[424144934,1780609859000,-500.0,0.00037808,11]
[424144945,1780609859000,-959.73,0.00037808,11]
[424144933,1780609859000,-500.0,0.00037808,11]
[424144947,1780609859000,-1350.45,0.00037808,11]
[424144946,1780609859000,-693.12,0.00037808,11]
[424144938,1780609859000,-620.97,0.00037808,11]
[424144941,1780609859000,-1000.88,0.00037808,11]
[424144950,1780609859000,-500.0,0.00037808,11]
[424144948,1780609859000,-500.0,0.00037808,11]
[424144939,1780609859000,-3978.89,0.00037808,11]
[424144937,1780609859000,-500.0,0.00037808,11]
[424144936,1780609859000,-500.0,0.00037808,11]
[424144935,1780609859000,-500.0,0.00037808,11]
[424144940,1780609859000,-500.0,0.00037808,11]
[424145024,1780609860000,-500.0,0.00037808,11]
[424145023,1780609860000,-500.0,0.00037808,11]
[424145019,1780609860000,-4490.65,0.00037808,11]
[424145022,1780609860000,-3194.29,0.00037808,11]
[424145017,1780609860000,-565.24,0.00037808,11]
[424145012,1780609860000,-500.0,0.00037808,11]
[424145015,1780609860000,-633.0,0.00037808,11]
[424145013,1780609860000,-760.7,0.00037808,11]
[424145014,1780609860000,-500.0,0.00037808,11]
[424145016,1780609860000,-500.0,0.00037808,11]
[424145021,1780609860000,-578.2,0.00037808,11]
[424145018,1780609860000,-500.0,0.00037808,11]
[424145048,1780609860000,-500.0,0.00037808,11]
[424145025,1780609860000,-500.0,0.00037808,11]
[424145030,1780609860000,-812.19,0.00037808,11]
[424145028,1780609860000,-1430.55,0.00037808,11]
[424145027,1780609860000,-4051.49,0.00037808,11]
[424145036,1780609860000,-1243.01,0.00037808,11]
[424145029,1780609860000,-500.0,0.00037808,11]
[424145026,1780609860000,-500.0,0.00037808,11]
[424145031,1780609860000,-500.0,0.00037808,11]
[424145035,1780609860000,-3279.15,0.00037808,11]
[424145033,1780609860000,-500.0,0.00037808,11]
[424145032,1780609860000,-500.0,0.00037808,11]
[424145034,1780609860000,-549.13,0.00037808,11]
[424145007,1780609860000,-790.85,0.00037808,11]
[424145020,1780609860000,-500.0,0.00037808,11]
[424145006,1780609860000,-500.0,0.00037808,11]
[424144996,1780609860000,-500.0,0.00037808,11]
[424145005,1780609860000,-500.0,0.00037808,11]
[424145037,1780609860000,-4748.28,0.00037808,11]
[424144986,1780609860000,-622.52,0.00037808,11]
[424144989,1780609860000,-659.75,0.00037808,11]
[424144987,1780609860000,-1666.07,0.00037808,11]
[424144988,1780609860000,-3559.2,0.00037808,11]
[424144982,1780609860000,-583.06,0.00037808,11]
[424144981,1780609860000,-3404.48,0.00037808,11]
[424144990,1780609860000,-500.0,0.00037808,11]
[424144984,1780609860000,-500.0,0.00037808,11]
[424144980,1780609860000,-500.0,0.00037808,11]
[424144983,1780609860000,-500.0,0.00037808,11]
[424144985,1780609860000,-500.0,0.00037808,11]
[424144992,1780609860000,-500.0,0.00037808,11]
[424145008,1780609860000,-500.0,0.00037808,11]
[424144991,1780609860000,-500.0,0.00037808,11]
[424144997,1780609860000,-11048.61,0.00037808,11]
[424144994,1780609860000,-3929.4,0.00037808,11]
[424144995,1780609860000,-500.0,0.00037808,11]
[424144999,1780609860000,-500.0,0.00037808,11]
[424145002,1780609860000,-500.0,0.00037808,11]
[424145011,1780609860000,-500.0,0.00037808,11]
[424145001,1780609860000,-500.0,0.00037808,11]
[424144998,1780609860000,-36690.62,0.00037808,11]
[424145009,1780609860000,-500.0,0.00037808,11]
[424145010,1780609860000,-500.0,0.00037808,11]
[424145000,1780609860000,-500.0,0.00037808,11]
[424145004,1780609860000,-582.83,0.00037808,11]
[424145003,1780609860000,-500.0,0.00037808,11]
[424144993,1780609860000,-500.0,0.00037808,11]
[424145038,1780609860000,-500.0,0.00037808,11]
[424145043,1780609860000,-500.0,0.00037808,11]
[424145040,1780609860000,-623.71,0.00037808,11]
[424145073,1780609860000,-60421.87,0.00037808,11]
[424145066,1780609860000,-592.72,0.00037808,11]
[424145077,1780609860000,-500.0,0.00037808,11]
[424145088,1780609860000,-500.0,0.00037808,11]
[424145076,1780609860000,-500.0,0.00037808,11]
[424145078,1780609860000,-2870.25,0.00037808,11]
[424145080,1780609860000,-1659.94,0.00037808,11]
[424145087,1780609860000,-500.0,0.00037808,11]
[424145079,1780609860000,-878.15,0.00037808,11]
[424145083,1780609860000,-3854.17,0.00037808,11]
[424145085,1780609860000,-500.0,0.00037808,11]
[424145082,1780609860000,-2625.55,0.00037808,11]
[424145084,1780609860000,-4272.54,0.00037808,11]
[424145086,1780609860000,-500.0,0.00037808,11]
[424145081,1780609860000,-2648.57,0.00037808,11]
[424145091,1780609860000,-500.0,0.00037808,11]
[424145089,1780609860000,-500.0,0.00037808,11]
[424145092,1780609860000,-2214.43,0.00037808,11]
[424145090,1780609860000,-500.0,0.00037808,11]
[424145094,1780609860000,-500.0,0.00037808,11]
[424145100,1780609860000,-500.0,0.00037808,11]
[424145097,1780609860000,-500.0,0.00037808,11]
[424145039,1780609860000,-703.64,0.00037808,11]
[424145098,1780609860000,-500.0,0.00037808,11]
[424145093,1780609860000,-500.0,0.00037808,11]
[424145095,1780609860000,-1070.68,0.00037808,11]
[424145099,1780609860000,-6161.84,0.00037808,11]
[424145072,1780609860000,-500.0,0.00037808,11]
[424145074,1780609860000,-500.0,0.00037808,11]
[424145096,1780609860000,-500.0,0.00037808,11]
[424145067,1780609860000,-2494.03,0.00037808,11]
[424145064,1780609860000,-500.0,0.00037808,11]
[424145049,1780609860000,-539.60616335,0.00037808,11]
[424145042,1780609860000,-500.0,0.00037808,11]
[424145041,1780609860000,-500.0,0.00037808,11]
[424145045,1780609860000,-500.0,0.00037808,11]
[424145044,1780609860000,-800.05,0.00037808,11]
[424145046,1780609860000,-4656.83,0.00037808,11]
[424145051,1780609860000,-500.0,0.00037808,11]
[424145062,1780609860000,-500.0,0.00037808,11]
[424145061,1780609860000,-2822.65,0.00037808,11]
[424145052,1780609860000,-1030.09,0.00037808,11]
[424145050,1780609860000,-2986.9,0.00037808,11]
[424145054,1780609860000,-500.0,0.00037808,11]
[424145047,1780609860000,-500.0,0.00037808,11]
[424145053,1780609860000,-7462.52,0.00037808,11]
[424145055,1780609860000,-500.0,0.00037808,11]
[424145068,1780609860000,-2885.57,0.00037808,11]
[424145063,1780609860000,-776.69,0.00037808,11]
[424145070,1780609860000,-500.0,0.00037808,11]
[424145071,1780609860000,-500.0,0.00037808,11]
[424145075,1780609860000,-500.0,0.00037808,11]
[424145059,1780609860000,-168.5808819,0.00037808,11]
[424145057,1780609860000,-500.0,0.00037808,11]
[424145065,1780609860000,-500.0,0.00037808,11]
[424145056,1780609860000,-3011.88,0.00037808,11]
[424145069,1780609860000,-500.0,0.00037808,11]
[424145058,1780609860000,-500.0,0.00037808,11]
[424145060,1780609860000,-500.0,0.00037808,11]
[424145136,1780609861000,-500.0,0.00037808,11]
[424145137,1780609861000,-329.63976575,0.00037808,11]
[424145125,1780609861000,-500.0,0.00037808,11]
[424145128,1780609861000,-500.0,0.00037808,11]
[424145127,1780609861000,-708.32,0.00037808,11]
[424145131,1780609861000,-2613.9,0.00037808,11]
[424145134,1780609861000,-500.0,0.00037808,11]
[424145133,1780609861000,-500.0,0.00037808,11]
[424145130,1780609861000,-3613.85,0.00037808,11]
[424145129,1780609861000,-2564.12,0.00037808,11]
[424145142,1780609861000,-500.0,0.00037808,11]
[424145139,1780609861000,-790.25,0.00037808,11]
[424145141,1780609861000,-500.0,0.00037808,11]
[424145140,1780609861000,-3702.47,0.00037808,11]
[424145138,1780609861000,-500.0,0.00037808,11]
[424145149,1780609861000,-4385.53,0.00037808,11]
[424145145,1780609861000,-500.0,0.00037808,11]
[424145143,1780609861000,-3412.16,0.00037808,11]
[424145146,1780609861000,-378.79999343,0.00037808,11]
[424145147,1780609861000,-4095.64,0.00037808,11]
[424145135,1780609861000,-4478.44,0.00037808,11]
[424145132,1780609861000,-566.1,0.00037808,11]
[424145126,1780609861000,-1515.33,0.00037808,11]
[424145106,1780609861000,-500.0,0.00037808,11]
[424145119,1780609861000,-8231.59,0.00037808,11]
[424145144,1780609861000,-2404.02,0.00037808,11]
[424145102,1780609861000,-1928.99,0.00037808,11]
[424145112,1780609861000,-6291.69,0.00037808,11]
[424145104,1780609861000,-1520.84,0.00037808,11]
[424145101,1780609861000,-500.0,0.00037808,11]
[424145109,1780609861000,-500.0,0.00037808,11]
[424145108,1780609861000,-500.0,0.00037808,11]
[424145103,1780609861000,-500.0,0.00037808,11]
[424145105,1780609861000,-356.48947651,0.00037808,11]
[424145107,1780609861000,-340.96611273,0.00037808,11]
[424145121,1780609861000,-500.0,0.00037808,11]
[424145110,1780609861000,-500.0,0.00037808,11]
[424145115,1780609861000,-500.0,0.00037808,11]
[424145113,1780609861000,-500.0,0.00037808,11]
[424145123,1780609861000,-355.56,0.00037808,11]
[424145116,1780609861000,-500.0,0.00037808,11]
[424145124,1780609861000,-500.0,0.00037808,11]
[424145114,1780609861000,-500.0,0.00037808,11]
[424145122,1780609861000,-500.0,0.00037808,11]
[424145117,1780609861000,-500.0,0.00037808,11]
[424145118,1780609861000,-500.0,0.00037808,11]
[424145120,1780609861000,-500.0,0.00037808,11]
[424145111,1780609861000,-500.0,0.00037808,11]
[424145148,1780609861000,-28929.84,0.00037808,11]
[424145190,1780609861000,-500.0,0.00037808,11]
[424145158,1780609861000,-3691.76,0.00037808,11]
[424145179,1780609861000,-500.0,0.00037808,11]
[424145189,1780609861000,-500.0,0.00037808,11]
[424145178,1780609861000,-3351.78,0.00037808,11]
[424145180,1780609861000,-500.0,0.00037808,11]
[424145181,1780609861000,-3628.99,0.00037808,11]
[424145185,1780609861000,-500.0,0.00037808,11]
[424145186,1780609861000,-527.36,0.00037808,11]
[424145182,1780609861000,-3494.2,0.00037808,11]
[424145184,1780609861000,-500.0,0.00037808,11]
[424145188,1780609861000,-3101.67,0.00037808,11]
[424145177,1780609861000,-3629.92,0.00037808,11]
[424145187,1780609861000,-500.0,0.00037808,11]
[424145192,1780609861000,-500.0,0.00037808,11]
[424145197,1780609861000,-4447.46,0.00037808,7]
[424145195,1780609861000,-500.0,0.00037808,11]
[424145194,1780609861000,-755.81,0.00037808,11]
[424145193,1780609861000,-500.0,0.00037808,11]
[424145198,1780609861000,-500.0,0.00037808,11]
[424145196,1780609861000,-500.0,0.00037808,11]
[424145200,1780609861000,-500.0,0.00037808,11]
[424145199,1780609861000,-670.74,0.00037808,11]
[424145155,1780609861000,-7481.71,0.00037808,11]
[424145183,1780609861000,-500.0,0.00037808,11]
[424145176,1780609861000,-500.0,0.00037808,11]
[424145191,1780609861000,-639.59,0.00037808,11]
[424145164,1780609861000,-500.0,0.00037808,11]
[424145174,1780609861000,-500.0,0.00037808,11]
[424145151,1780609861000,-5268.13,0.00037808,11]
[424145160,1780609861000,-500.0,0.00037808,11]
[424145150,1780609861000,-500.0,0.00037808,11]
[424145153,1780609861000,-500.0,0.00037808,11]
[424145159,1780609861000,-500.0,0.00037808,11]
[424145161,1780609861000,-500.0,0.00037808,11]
[424145162,1780609861000,-500.0,0.00037808,11]
[424145156,1780609861000,-500.0,0.00037808,11]
[424145157,1780609861000,-500.0,0.00037808,11]
[424145152,1780609861000,-2550.57,0.00037808,11]
[424145154,1780609861000,-2873.17,0.00037808,11]
[424145170,1780609861000,-841.83,0.00037808,11]
[424145169,1780609861000,-41097.1,0.00037808,11]
[424145171,1780609861000,-500.0,0.00037808,2]
[424145166,1780609861000,-500.0,0.00037808,11]
[424145168,1780609861000,-522.4,0.00037808,11]
[424145165,1780609861000,-3000.27,0.00037808,11]
[424145167,1780609861000,-500.0,0.00037808,11]
[424145173,1780609861000,-601.28,0.00037808,11]
[424145172,1780609861000,-3164.18,0.00037808,11]
[424145175,1780609861000,-521.5,0.00037808,11]
[424145163,1780609861000,-718.88,0.00037808,11]
[424145240,1780609862000,-7726.77,0.00037808,11]
[424145228,1780609862000,-500.0,0.00037808,11]
[424145248,1780609862000,-3104.62,0.00037808,11]
[424145243,1780609862000,-500.0,0.00037808,11]
[424145245,1780609862000,-500.0,0.00037808,11]
[424145242,1780609862000,-500.0,0.00037808,11]
[424145227,1780609862000,-500.0,0.00037808,11]
[424145247,1780609862000,-500.0,0.00037808,11]
[424145241,1780609862000,-500.0,0.00037808,11]
[424145236,1780609862000,-599.46,0.00037808,11]
[424145231,1780609862000,-9837.19,0.00037808,11]
[424145238,1780609862000,-500.0,0.00037808,11]
[424145237,1780609862000,-500.0,0.00037808,11]
[424145239,1780609862000,-6206.91,0.00037808,11]
[424145259,1780609862000,-500.0,0.00037808,11]
[424145244,1780609862000,-341.51157658,0.00037808,11]
[424145250,1780609862000,-500.0,0.00037808,11]
[424145260,1780609862000,-4507.58,0.00037808,11]
[424145251,1780609862000,-500.0,0.00037808,11]
[424145252,1780609862000,-674.62,0.00037808,11]
[424145257,1780609862000,-578.71791613,0.00037808,11]
[424145254,1780609862000,-500.0,0.00037808,11]
[424145253,1780609862000,-500.0,0.00037808,11]
[424145255,1780609862000,-500.0,0.00037808,11]
[424145256,1780609862000,-500.0,0.00037808,11]
[424145258,1780609862000,-706.77,0.00037808,11]
[424145262,1780609862000,-665.08,0.00037808,11]
[424145229,1780609862000,-500.0,0.00037808,11]
[424145246,1780609862000,-500.0,0.00037808,11]
[424145226,1780609862000,-2900.38,0.00037808,11]
[424145212,1780609862000,-427.4210252,0.00037808,11]
[424145230,1780609862000,-500.0,0.00037808,11]
[424145201,1780609862000,-500.0,0.00037808,11]
[424145203,1780609862000,-500.0,0.00037808,11]
[424145202,1780609862000,-500.0,0.00037808,11]
[424145204,1780609862000,-3298.28,0.00037808,11]
[424145208,1780609862000,-6377.55,0.00037808,11]
[424145261,1780609862000,-500.0,0.00037808,11]
[424145209,1780609862000,-500.0,0.00037808,11]
[424145206,1780609862000,-3569.41,0.00037808,11]
[424145205,1780609862000,-500.0,0.00037808,11]
[424145211,1780609862000,-500.0,0.00037808,11]
[424145210,1780609862000,-714.3,0.00037808,11]
[424145207,1780609862000,-3546.02,0.00037808,11]
[424145213,1780609862000,-500.0,0.00037808,11]
[424145235,1780609862000,-500.0,0.00037808,11]
[424145215,1780609862000,-500.0,0.00037808,11]
[424145216,1780609862000,-500.0,0.00037808,11]
[424145214,1780609862000,-500.0,0.00037808,11]
[424145218,1780609862000,-500.0,0.00037808,11]
[424145223,1780609862000,-500.0,0.00037808,11]
[424145222,1780609862000,-3576.54,0.00037808,11]
[424145220,1780609862000,-3061.44,0.00037808,11]
[424145219,1780609862000,-335.38637951,0.00037808,11]
[424145224,1780609862000,-500.0,0.00037808,11]
[424145221,1780609862000,-5003.27,0.00037808,11]
[424145232,1780609862000,-540.18,0.00037808,11]
[424145233,1780609862000,-500.0,0.00037808,11]
[424145234,1780609862000,-500.0,0.00037808,11]
[424145225,1780609862000,-500.0,0.00037808,11]
[424145217,1780609862000,-500.0,0.00037808,11]
[424145263,1780609862000,-3563.89,0.00037808,11]
[424145249,1780609862000,-500.0,0.00037808,11]
[424145266,1780609862000,-500.0,0.00037808,11]
[424145294,1780609862000,-3112.66,0.00037808,11]
[424145295,1780609862000,-2411.26,0.00037808,11]
[424145293,1780609862000,-3359.97,0.00037808,11]
[424145292,1780609862000,-500.0,0.00037808,11]
[424145296,1780609862000,-3339.36,0.00037808,11]
[424145305,1780609862000,-12422.13,0.00037808,11]
[424145306,1780609862000,-500.0,0.00037808,3]
[424145307,1780609862000,-500.0,0.00037808,11]
[424145303,1780609862000,-533.68,0.00037808,11]
[424145304,1780609862000,-500.0,0.00037808,11]
[424145310,1780609862000,-500.0,0.00037808,11]
[424145308,1780609862000,-683.5,0.00037808,11]
[424145309,1780609862000,-3790.95,0.00037808,11]
[424145311,1780609862000,-2873.09,0.00037808,11]
[424145313,1780609862000,-500.0,0.00037808,11]
[424145314,1780609862000,-500.0,0.00037808,11]
[424145315,1780609862000,-500.0,0.00037808,11]
[424145316,1780609862000,-685.7,0.00037808,11]
[424145317,1780609862000,-12334.13,0.00037808,11]
[424145318,1780609862000,-3336.46,0.00037808,11]
[424145326,1780609862000,-4650.59,0.00037808,11]
[424145319,1780609862000,-500.0,0.00037808,11]
[424145325,1780609862000,-500.0,0.00037808,11]
[424145322,1780609862000,-543.2,0.00037808,11]
[424145324,1780609862000,-500.0,0.00037808,11]
[424145320,1780609862000,-500.0,0.00037808,11]
[424145321,1780609862000,-520.25181531,0.00037808,11]
[424145267,1780609862000,-4510.34,0.00037808,11]
[424145323,1780609862000,-500.0,0.00037808,11]
[424145291,1780609862000,-4798.39,0.00037808,11]
[424145301,1780609862000,-500.0,0.00037808,11]
[424145312,1780609862000,-500.0,0.00037808,11]
[424145290,1780609862000,-500.0,0.00037808,11]
[424145265,1780609862000,-500.0,0.00037808,11]
[424145302,1780609862000,-500.0,0.00037808,11]
[424145273,1780609862000,-151.0,0.00037808,30]
[424145268,1780609862000,-500.0,0.00037808,11]
[424145274,1780609862000,-500.0,0.00037808,11]
[424145270,1780609862000,-4348.87,0.00037808,11]
[424145272,1780609862000,-500.0,0.00037808,11]
[424145271,1780609862000,-500.0,0.00037808,11]
[424145269,1780609862000,-500.0,0.00037808,11]
[424145275,1780609862000,-500.59,0.00037808,11]
[424145278,1780609862000,-151.0,0.00037808,30]
[424145277,1780609862000,-500.0,0.00037808,11]
[424145279,1780609862000,-500.0,0.00037808,11]
[424145281,1780609862000,-156.494329,0.00037808,30]
[424145264,1780609862000,-5779.59,0.00037808,11]
[424145284,1780609862000,-9429.18,0.00037808,11]
[424145289,1780609862000,-597.61,0.00037808,11]
[424145283,1780609862000,-500.0,0.00037808,11]
[424145282,1780609862000,-500.0,0.00037808,11]
[424145276,1780609862000,-500.0,0.00037808,11]
[424145285,1780609862000,-8627.97,0.00037808,11]
[424145287,1780609862000,-553.82340774,0.00037808,11]
[424145286,1780609862000,-500.0,0.00037808,11]
[424145288,1780609862000,-500.0,0.00037808,11]
[424145280,1780609862000,-500.0,0.00037808,11]
[424145297,1780609862000,-500.0,0.00037808,11]
[424145298,1780609862000,-500.0,0.00037808,11]
[424145299,1780609862000,-534.89,0.00037808,11]
[424145300,1780609862000,-500.0,0.00037808,11]
[424145371,1780609863000,-500.0,0.00037808,11]
[424145368,1780609863000,-500.0,0.00037808,11]
[424145374,1780609863000,-500.0,0.00037808,11]
[424145369,1780609863000,-500.0,0.00037808,11]
[424145370,1780609863000,-899.77,0.00037808,11]
[424145363,1780609863000,-500.0,0.00037808,11]
[424145358,1780609863000,-636.34660571,0.00037808,11]